fUST/lending_fUST_20250130
["ID","MTS","AMOUNT","RATE_DAILY","PERIOD"]
[350867826,1738167042591,-500.0,0.00016712,2]
[350867828,1738167042601,-500.0,0.00016712,2]
[350867829,1738167042610,-500.0,0.00016712,2]
[350867832,1738167042621,-500.0,0.00016712,2]
[350867835,1738167042630,-500.0,0.00016712,2]
[350867837,1738167042639,-500.0,0.00016712,2]
[350867839,1738167042649,-500.0,0.00016712,2]
[350867841,1738167042659,-500.0,0.00016712,2]
[350867843,1738167042669,-475.10342369,0.00016712,2]
[350867846,1738167042679,-500.0,0.00016712,2]
[350867849,1738167042688,-500.0,0.00016712,2]
[350867852,1738167042698,-500.0,0.00016712,2]
[350867854,1738167042707,-500.0,0.00016712,2]
[350867857,1738167042717,-500.0,0.00016712,2]
[350867859,1738167042726,-500.0,0.00016712,2]
[350867863,1738167042735,-500.0,0.00016712,2]
[350867866,1738167042745,-511.39174363,0.00016712,2]
[350867869,1738167042754,-500.0,0.00016712,2]
[350867871,1738167042763,-500.0,0.00016712,2]
[350867873,1738167042774,-502.09692297,0.00016712,2]
[350867875,1738167042783,-500.0,0.00016712,2]
[350867878,1738167042793,-500.0,0.00016712,2]
[350867880,1738167042802,-500.0,0.00016712,2]
[350867882,1738167042811,-500.0,0.00016712,2]
[350867884,1738167042820,-500.0,0.00016712,2]
[350867886,1738167042830,-500.0,0.00016712,2]
[350867888,1738167042843,-501.59703703,0.00016712,2]
[350867890,1738167042859,-500.0,0.00016712,2]
[350867892,1738167042870,-500.0,0.00016712,2]
[350867894,1738167042879,-298.50770417,0.00016712,2]
[350867896,1738167042890,-500.0,0.00016712,2]
[350867898,1738167042900,-500.0,0.00016712,2]
[350867900,1738167042909,-500.0,0.00016712,2]
[350867902,1738167042919,-500.0,0.00016712,2]
[350867904,1738167042929,-214.4924377,0.00016712,2]
[350867906,1738167042938,-857.74,0.00016712,2]
[350867909,1738167042948,-500.0,0.00016712,2]
[350867910,1738167042957,-500.0,0.00016712,2]
[350867912,1738167042967,-500.0,0.00016712,2]
[350867914,1738167042976,-500.0,0.00016712,2]
[350867916,1738167042986,-500.0,0.00016712,2]
[350867918,1738167042996,-500.0,0.00016712,2]
[350867920,1738167043005,-500.0,0.00016712,2]
[350867922,1738167043015,-500.0,0.00016712,2]
[350867924,1738167043024,-740.58,0.00016712,2]
[350867926,1738167043034,-500.0,0.00016712,2]
[350867928,1738167043043,-500.0,0.00016712,2]
[350867930,1738167043053,-500.0,0.00016712,2]
[350867932,1738167043062,-500.0,0.00016712,2]
[350867934,1738167043072,-500.0,0.00016712,2]
[350867936,1738167043081,-527.64,0.00016712,2]
[350867938,1738167043092,-500.0,0.00016712,2]
[350867940,1738167043101,-500.0,0.00016712,2]
[350867942,1738167043111,-500.0,0.00016712,2]
[350867944,1738167043120,-500.0,0.00016712,2]
[350867946,1738167043129,-500.0,0.00016712,2]
[350867948,1738167043139,-500.0,0.00016712,2]
[350867950,1738167043149,-500.0,0.00016712,2]
[350867952,1738167043158,-248.77430846,0.00016712,2]
[350867954,1738167043168,-500.0,0.00016712,2]
[350867956,1738167043178,-500.0,0.00016712,2]
[350867958,1738167043187,-500.0,0.00016712,2]
[350867961,1738167043197,-509.0451226,0.00016712,2]
[350867962,1738167043206,-500.0,0.00016712,2]
[350867965,1738167043216,-500.0,0.00016712,2]
[350867967,1738167043225,-500.0,0.00016712,2]
[350867969,1738167043235,-500.0,0.00016712,2]
[350867971,1738167043244,-500.0,0.00016712,2]
[350867972,1738167043253,-500.0,0.00016712,2]
[350867983,1738167043344,-308.5235267,0.00016712,2]
[350867985,1738167043355,-500.0,0.00016712,2]
[350867987,1738167043364,-500.0,0.00016712,2]
[350867989,1738167043374,-512.65,0.00016712,2]
[350867991,1738167043384,-199.25625357,0.00016712,2]
[350867993,1738167043394,-500.0,0.00016712,2]
[350867995,1738167043403,-500.0,0.00016712,2]
[350867997,1738167043412,-500.0,0.00016712,2]
[350867999,1738167043421,-753.84,0.00016712,2]
[350868000,1738167043430,-500.0,0.00016712,2]
[350868003,1738167043440,-500.0,0.00016712,2]
[350868004,1738167043449,-500.0,0.00016712,2]
[350868006,1738167043459,-576.51685798,0.00016712,2]
[350868008,1738167043469,-500.0,0.00016712,2]
[350868010,1738167043478,-451.7851618,0.00016712,2]
[350868012,1738167043488,-500.0,0.00016712,2]
[350868014,1738167043498,-537.85,0.00016712,2]
[350868017,1738167043508,-500.0,0.00016712,2]
[350868019,1738167043518,-500.0,0.00016712,2]
[350868021,1738167043527,-959.94,0.00016712,2]
[350868023,1738167043537,-500.0,0.00016712,2]
[350868025,1738167043547,-500.0,0.00016712,2]
[350868027,1738167043556,-500.0,0.00016712,2]
[350868029,1738167043566,-151.0,0.00016712,2]
[350868031,1738167043575,-159.446968,0.00016712,2]
[350868033,1738167043585,-500.0,0.00016712,2]
[350868035,1738167043594,-782.17,0.00016712,2]
[350868037,1738167043604,-500.0,0.00016712,2]
[350868039,1738167043618,-500.0,0.00016712,2]
[350868041,1738167043628,-500.0,0.00016712,2]
[350868043,1738167043637,-500.0,0.00016712,2]
[350868045,1738167043647,-500.0,0.00016712,2]
[350868047,1738167043657,-500.0,0.00016712,2]
[350868049,1738167043666,-1503.72,0.00016712,2]
[350868051,1738167043675,-500.0,0.00016712,2]
[350868053,1738167043685,-1065.64,0.00016712,2]
[350868055,1738167043694,-500.0,0.00016712,2]
[350868057,1738167043704,-151.0,0.00016712,2]
[350868058,1738167043713,-151.0,0.00016712,2]
[350868059,1738167043723,-568.53,0.00016712,2]
[350868060,1738167043732,-500.0,0.00016712,2]
[350868061,1738167043741,-8987.43,0.00016712,2]
[350868062,1738167043754,-1863.57,0.00016712,2]
[350868063,1738167043764,-1901.45,0.00016712,2]
[350868064,1738167043773,-500.0,0.00016712,2]
[350868065,1738167043783,-3051.9,0.00016712,2]
[350868066,1738167043792,-500.0,0.00016712,2]
[350868067,1738167043801,-500.0,0.00016712,2]
[350868068,1738167043810,-565.03,0.00016712,2]
[350868069,1738167043819,-500.0,0.00016712,2]
[350868070,1738167043828,-506.6143364,0.00016712,2]
[350868071,1738167043839,-500.0,0.00016712,2]
[350868072,1738167043852,-500.0,0.00016712,2]
[350868073,1738167043862,-500.0,0.00016712,2]
[350868074,1738167043872,-500.0,0.00016712,2]
[350868075,1738167043882,-513.54563922,0.00016712,2]
[350868076,1738167043892,-500.0,0.00016712,2]
[350868077,1738167043902,-500.0,0.00016712,2]
[350868078,1738167043911,-429.25498124,0.00016712,2]
[350868079,1738167043921,-1596.46,0.00016712,2]
[350868081,1738167043931,-1036.62,0.00016712,2]
[350868082,1738167043941,-500.0,0.00016712,2]
[350868084,1738167043950,-500.0,0.00016712,2]
[350868086,1738167043960,-524.72,0.00016712,2]
[350868088,1738167043970,-2517.45,0.00016712,2]
[350868090,1738167043980,-151.0,0.00016712,2]
[350868092,1738167043989,-151.0,0.00016712,2]
[350868094,1738167043999,-259.02917,0.00016712,2]
[350868096,1738167044009,-151.0,0.00016712,2]
[350868098,1738167044018,-500.0,0.00016712,2]
[350868100,1738167044028,-3481.15,0.00016712,2]
[350868102,1738167044038,-1369.08,0.00016712,2]
[350868104,1738167044048,-500.0,0.00016712,2]
[350868106,1738167044057,-29102.64,0.00016712,2]
[350868108,1738167044067,-500.0,0.00016712,2]
[350868110,1738167044077,-500.0,0.00016712,2]
[350868112,1738167044086,-613.42,0.00016712,2]
[350868114,1738167044095,-9843.98,0.00016712,2]
[350868116,1738167044104,-1317.04,0.00016712,2]
[350868118,1738167044114,-500.0,0.00016712,2]
[350868120,1738167044123,-500.0,0.00016712,2]
[350868122,1738167044132,-610.18,0.00016712,2]
[350868124,1738167044141,-500.0,0.00016712,2]
[350868126,1738167044150,-622.02,0.00016712,2]
[350868128,1738167044159,-7747.18,0.00016712,2]
[350868130,1738167044169,-500.0,0.00016712,2]
[350868132,1738167044178,-500.0,0.00016712,2]
[350868134,1738167044187,-500.0,0.00016712,2]
[350868136,1738167044196,-500.0,0.00016712,2]
[350868138,1738167044205,-1214.29,0.00016712,2]
[350868140,1738167044215,-311.64332739,0.00016712,2]
[350868142,1738167044225,-5862.98,0.00016712,2]
[350868144,1738167044234,-500.0,0.00016712,2]
[350868146,1738167044243,-500.0,0.00016712,2]
[350868148,1738167044254,-1457.73,0.00016712,2]
[350868150,1738167044263,-500.0,0.00016712,2]
[350868152,1738167044272,-500.0,0.00016712,2]
[350868154,1738167044281,-500.0,0.00016712,2]
[350868156,1738167044291,-500.0,0.00016712,2]
[350868158,1738167044300,-500.0,0.00016712,2]
[350868160,1738167044310,-500.0,0.00016712,2]
[350868162,1738167044319,-20450.41,0.00016712,2]
[350868164,1738167044329,-566.49042879,0.00016712,2]
[350868166,1738167044339,-500.0,0.00016712,2]
[350868169,1738167044348,-500.0,0.00016712,2]
[350868170,1738167044358,-500.0,0.00016712,2]
[350868172,1738167044368,-500.0,0.00016712,2]
[350868174,1738167044377,-2531.83,0.00016712,2]
[350868176,1738167044387,-500.0,0.00016712,2]
[350868178,1738167044396,-500.0,0.00016712,2]
[350868180,1738167044406,-2817.51,0.00016712,2]
[350868183,1738167044416,-500.0,0.00016712,2]
[350868185,1738167044426,-956.35,0.00016712,2]
[350868187,1738167044435,-500.0,0.00016712,2]
[350868189,1738167044445,-500.0,0.00016712,2]
[350868191,1738167044454,-905.6,0.00016712,2]
[350868192,1738167044462,-500.0,0.00016712,2]
[350868194,1738167044471,-500.0,0.00016712,2]
[350868196,1738167044481,-370.14361121,0.00016712,2]
[350868198,1738167044491,-1008.9,0.00016712,2]
[350868200,1738167044500,-500.0,0.00016712,2]
[350868202,1738167044509,-151.0,0.00016712,2]
[350868204,1738167044519,-151.0,0.00016712,2]
[350868206,1738167044528,-500.0,0.00016712,2]
[350868208,1738167044538,-500.0,0.00016712,2]
[350868210,1738167044547,-500.0,0.00016712,2]
[350868212,1738167044556,-153.763308,0.00016712,2]
[350868214,1738167044565,-2248.38,0.00016712,2]
[350868216,1738167044575,-500.0,0.00016712,2]
[350868218,1738167044585,-500.0,0.00016712,2]
[350868220,1738167044594,-502.63905769,0.00016712,2]
[350868222,1738167044603,-500.0,0.00016712,2]
[350868224,1738167044613,-500.0,0.00016773,2]
[350868226,1738167044622,-500.0,0.00016849,2]
[350868228,1738167044631,-505.23585215,0.00016849,2]
[350868230,1738167044641,-206.63417343,0.00016849,2]
[350868232,1738167044650,-500.0,0.00016849,2]
[350868233,1738167044659,-500.0,0.00016849,2]
[350868235,1738167044668,-500.0,0.00016849,2]
[350868238,1738167044678,-500.0,0.00016849,2]
[350868240,1738167044688,-500.0,0.00016849,2]
[350868242,1738167044697,-500.0,0.00016849,2]
[350868244,1738167044706,-500.0,0.00016849,2]
[350868245,1738167044716,-500.0,0.00016849,2]
[350868255,1738167044725,-500.0,0.00016849,2]
[350868258,1738167044817,-500.0,0.00016849,2]
[350868260,1738167044827,-500.0,0.00016849,2]
[350868262,1738167044838,-500.0,0.00016849,2]
[350868263,1738167044849,-500.0,0.00016849,2]
[350868265,1738167044859,-500.0,0.00016849,2]
[350868267,1738167044869,-500.0,0.00016849,2]
[350868269,1738167044879,-500.0,0.00016849,2]
[350868271,1738167044888,-500.0,0.00016849,2]
[350868273,1738167044898,-500.0,0.00016849,2]
[350868275,1738167044908,-500.0,0.00016849,2]
[350868277,1738167044917,-500.0,0.00016849,2]
[350868279,1738167044927,-500.0,0.00016849,2]
[350868281,1738167044937,-500.0,0.00016849,2]
[350868283,1738167044947,-500.0,0.00016849,2]
[350868285,1738167044957,-500.0,0.00016849,2]
[350868287,1738167044967,-500.0,0.00016849,2]
[350868289,1738167044977,-500.0,0.00016849,2]
[350868291,1738167044988,-500.0,0.00016849,2]
[350868293,1738167044999,-500.0,0.00016849,2]
[350868295,1738167045010,-506.2594217,0.00016849,2]
[350868297,1738167045020,-193.99145652,0.00016849,2]
[350868299,1738167045030,-500.0,0.00016849,2]
[350868301,1738167045040,-500.0,0.00016849,2]
[350868303,1738167045051,-500.0,0.00016849,2]
[350868305,1738167045061,-172.4257898,0.00016849,2]
[350868307,1738167045070,-500.0,0.00016849,2]
[350868309,1738167045079,-577.25341489,0.00016849,2]
[350868311,1738167045095,-548.56861583,0.00016849,2]
[350868314,1738167045106,-500.0,0.00016849,2]
[350868315,1738167045115,-500.0,0.00016849,2]
[350868317,1738167045125,-500.0,0.00016849,2]
[350868319,1738167045135,-500.0,0.00016849,2]
[350868321,1738167045144,-500.0,0.00016849,2]
[350868323,1738167045153,-500.0,0.00016849,2]
[350868325,1738167045163,-500.0,0.00016849,2]
[350868327,1738167045172,-500.0,0.00016849,2]
[350868329,1738167045182,-500.0,0.00016849,2]
[350868331,1738167045191,-327.49916583,0.00016849,2]
[350868333,1738167045200,-173.15,0.00016849,2]
[350868335,1738167045210,-500.0,0.00016849,2]
[350868337,1738167045219,-500.0,0.00016849,2]
[350868339,1738167045228,-500.0,0.00016849,2]
[350868341,1738167045238,-500.0,0.00016849,2]
[350868343,1738167045248,-503.07504202,0.00016849,2]
[350868345,1738167045257,-500.0,0.00016849,2]
[350868347,1738167045267,-500.0,0.00016849,2]
[350868349,1738167045277,-500.0,0.00016849,2]
[350868351,1738167045286,-500.0,0.00016849,2]
[350868353,1738167045295,-500.0,0.00016849,2]
[350868355,1738167045305,-500.0,0.00016849,2]
[350868357,1738167045314,-527.41,0.00016849,2]
[350868359,1738167045324,-857.74,0.00016849,2]
[350868361,1738167045333,-500.0,0.00016849,2]
[350868363,1738167045344,-202.94285307,0.00016849,2]
[350868365,1738167045354,-500.0,0.00016849,2]
[350868367,1738167045363,-500.0,0.00016849,2]
[350868369,1738167045372,-500.0,0.00016849,2]
[350868371,1738167045381,-500.0,0.00016849,2]
[350868373,1738167045390,-500.0,0.00016849,2]
[350868375,1738167045399,-740.58,0.00016849,2]
[350868377,1738167045408,-500.0,0.00016849,2]
[350868379,1738167045417,-500.0,0.00016849,2]
[350868381,1738167045426,-500.0,0.00016849,2]
[350868382,1738167045435,-500.0,0.00016849,2]
[350868384,1738167045444,-527.64,0.00016849,2]
[350868386,1738167045454,-500.0,0.00016849,2]
[350868388,1738167045463,-500.0,0.00016849,2]
[350868390,1738167045473,-500.0,0.00016849,2]
[350868393,1738167045484,-592.28904667,0.00016849,2]
[350868394,1738167045498,-500.0,0.00016849,2]
[350868397,1738167045509,-500.0,0.00016849,2]
[350868399,1738167045519,-500.0,0.00016849,2]
[350868401,1738167045529,-500.0,0.00016849,2]
[350868402,1738167045539,-500.0,0.00016849,2]
[350868404,1738167045549,-500.0,0.00016849,2]
[350868406,1738167045559,-500.0,0.00016849,2]
[350868409,1738167045569,-500.0,0.00016849,2]
[350868410,1738167045578,-504.31158503,0.00016849,2]
[350868412,1738167045590,-500.0,0.00016849,2]
[350868414,1738167045599,-512.65,0.00016849,2]
[350868417,1738167045609,-500.0,0.00016849,2]
[350868419,1738167045618,-500.0,0.00016849,2]
[350868421,1738167045627,-500.0,0.00016849,2]
[350868423,1738167045636,-753.84,0.00016849,2]
[350868425,1738167045646,-192.25846743,0.00016849,2]
[350868427,1738167045656,-500.0,0.00016849,2]
[350868429,1738167045665,-500.0,0.00016849,2]
[350868431,1738167045675,-500.0,0.00016849,2]
[350868433,1738167045685,-500.0,0.00016849,2]
[350868435,1738167045694,-537.85,0.00016849,2]
[350868437,1738167045704,-500.0,0.00016849,2]
[350868439,1738167045713,-500.0,0.00016849,2]
[350868441,1738167045722,-959.94,0.00016849,2]
[350868443,1738167045731,-500.0,0.00016849,2]
[350868445,1738167045740,-500.0,0.00016849,2]
[350868447,1738167045750,-500.0,0.00016849,2]
[350868449,1738167045759,-500.0,0.00016849,2]
[350868451,1738167045768,-782.17,0.00016849,2]
[350868453,1738167045777,-500.0,0.00016849,2]
[350868456,1738167045786,-500.0,0.00016849,2]
[350868459,1738167045795,-500.0,0.00016849,2]
[350868462,1738167045804,-500.0,0.00016849,2]
[350868465,1738167045814,-1503.72,0.00016849,2]
[350868467,1738167045823,-500.0,0.00016849,2]
[350868469,1738167045833,-1065.64,0.00016849,2]
[350868471,1738167045845,-500.0,0.00016849,2]
[350868473,1738167045858,-151.0,0.00016849,2]
[350868475,1738167045868,-210.111626,0.00016849,2]
[350868477,1738167045877,-568.53,0.00016849,2]
[350868479,1738167045887,-500.0,0.00016849,2]
[350868481,1738167045897,-8987.43,0.00016849,2]
[350868483,1738167045906,-1863.57,0.00016849,2]
[350868485,1738167045916,-1901.45,0.00016849,2]
[350868487,1738167045925,-500.0,0.00016849,2]
[350868489,1738167045936,-3051.9,0.00016849,2]
[350868491,1738167045946,-500.0,0.00016849,2]
[350868492,1738167045955,-500.0,0.00016849,2]
[350868494,1738167045964,-565.03,0.00016849,2]
[350868496,1738167045973,-231.87197456,0.00016849,2]
[350868498,1738167045983,-500.0,0.00016849,2]
[350868500,1738167045992,-500.0,0.00016849,2]
[350868502,1738167046001,-500.0,0.00016849,2]
[350868504,1738167046011,-500.0,0.00016849,2]
[350868506,1738167046020,-500.0,0.00016849,2]
[350868508,1738167046030,-500.0,0.00016849,2]
[350868510,1738167046039,-1596.46,0.00016849,2]
[350868512,1738167046049,-1036.62,0.00016849,2]
[350868514,1738167046058,-500.0,0.00016849,2]
[350868516,1738167046067,-500.0,0.00016849,2]
[350868518,1738167046077,-524.72,0.00016849,2]
[350868520,1738167046086,-2517.45,0.00016849,2]
[350868522,1738167046096,-151.0,0.00016849,2]
[350868524,1738167046105,-151.0,0.00016849,2]
[350868526,1738167046114,-500.0,0.00016849,2]
[350868535,1738167046198,-3481.15,0.00016849,2]
[350868537,1738167046209,-1369.08,0.00016849,2]
[350868539,1738167046218,-500.0,0.00016849,2]
[350868541,1738167046228,-29102.64,0.00016849,2]
[350868543,1738167046237,-500.0,0.00016849,2]
[350868545,1738167046247,-613.42,0.00016849,2]
[350868547,1738167046257,-9843.98,0.00016849,2]
[350868549,1738167046267,-1317.04,0.00016849,2]
[350868551,1738167046276,-500.0,0.00016849,2]
[350868553,1738167046285,-610.18,0.00016849,2]
[350868555,1738167046294,-493.94,0.00016849,2]
[350868557,1738167046303,-622.02,0.00016849,2]
[350868559,1738167046313,-500.0,0.00016849,2]
[350868561,1738167046322,-7747.18,0.00016849,2]
[350868563,1738167046331,-500.0,0.00016849,2]
[350868565,1738167046341,-500.0,0.00016849,2]
[350868567,1738167046350,-500.0,0.00016849,2]
[350868569,1738167046358,-500.0,0.00016849,2]
[350868571,1738167046367,-1214.29,0.00016849,2]
[350868573,1738167046378,-5862.98,0.00016849,2]
[350868575,1738167046387,-500.0,0.00016849,2]
[350868577,1738167046396,-500.0,0.00016849,2]
[350868579,1738167046405,-1457.73,0.00016849,2]
[350868581,1738167046415,-500.0,0.00016849,2]
[350868582,1738167046424,-500.0,0.00016849,2]
[350868584,1738167046433,-500.0,0.00016849,2]
[350868586,1738167046442,-619.16,0.00016849,2]
[350868588,1738167046451,-500.0,0.00016849,2]
[350868590,1738167046461,-500.0,0.00016849,2]
[350868592,1738167046470,-20450.41,0.00016849,2]
[350868594,1738167046479,-500.0,0.00016849,2]
[350868596,1738167046488,-500.0,0.00016849,2]
[350868598,1738167046497,-481.33126369,0.00016849,2]
[350868600,1738167046506,-337.99239364,0.00016849,2]
[350868602,1738167046516,-2531.83,0.00016849,2]
[350868604,1738167046525,-500.0,0.00016849,2]
[350868606,1738167046534,-500.0,0.00016849,2]
[350868608,1738167046543,-2817.51,0.00016849,2]
[350868610,1738167046552,-150.28982545,0.00016849,2]
[350868612,1738167046561,-956.35,0.00016849,2]
[350868614,1738167046570,-500.0,0.00016849,2]
[350868616,1738167046579,-905.6,0.00016849,2]
[350868618,1738167046590,-500.0,0.00016849,2]
[350868619,1738167046599,-1008.9,0.00016849,2]
[350868621,1738167046608,-500.0,0.00016849,2]
[350868624,1738167046618,-151.0,0.00016849,2]
[350868625,1738167046627,-151.0,0.00016849,2]
[350868627,1738167046637,-500.0,0.00016849,2]
[350868629,1738167046646,-500.0,0.00016849,2]
[350868631,1738167046655,-500.0,0.00016849,2]
[350868633,1738167046665,-2248.38,0.00016849,2]
[350868635,1738167046675,-500.0,0.00016849,2]
[350868637,1738167046684,-500.0,0.00016849,2]
[350868639,1738167046694,-2402.7893244,0.00016886,2]
[350868641,1738167046703,-500.0,0.00016986,2]
[350868643,1738167046713,-440.36897376,0.00016986,2]
[350868645,1738167046723,-500.0,0.00016986,2]
[350868647,1738167046733,-530.22749028,0.00016986,2]
[350868649,1738167046742,-500.0,0.00016986,2]
[350868651,1738167046752,-500.0,0.00016986,2]
[350868653,1738167046761,-500.0,0.00016986,2]
[350868655,1738167046771,-501.9477077,0.00016986,2]
[350868657,1738167046780,-472.80821669,0.00016986,2]
[350868659,1738167046789,-567.26058967,0.00016986,2]
[350868661,1738167046799,-500.0,0.00016986,2]
[350868663,1738167046808,-500.0,0.00016986,2]
[350868665,1738167046818,-500.0,0.00016986,2]
[350868667,1738167046827,-500.0,0.00016986,2]
[350868669,1738167046836,-500.0,0.00016986,2]
[350868671,1738167046848,-500.0,0.00016986,2]
[350868673,1738167046859,-500.0,0.00016986,2]
[350868675,1738167046868,-231.93261586,0.00016986,2]
[350868677,1738167046879,-500.0,0.00016986,2]
[350868679,1738167046889,-293.97026251,0.00016986,2]
[350868681,1738167046899,-500.0,0.00016986,2]
[350868683,1738167046907,-500.0,0.00016986,2]
[350868685,1738167046917,-500.0,0.00016986,2]
[350868687,1738167046926,-500.0,0.00016986,2]
[350868689,1738167046935,-500.0,0.00016986,2]
[350868691,1738167046945,-500.0,0.00016986,2]
[350868693,1738167046954,-500.0,0.00016986,2]
[350868695,1738167046963,-500.0,0.00016986,2]
[350868697,1738167046973,-460.09025798,0.00016986,2]
[350868699,1738167046982,-500.0,0.00016986,2]
[350868701,1738167046991,-500.0,0.00016986,2]
[350868703,1738167047000,-500.0,0.00016986,2]
[350868705,1738167047010,-515.91728818,0.00016986,2]
[350868707,1738167047019,-500.0,0.00016986,2]
[350868709,1738167047028,-500.0,0.00016986,2]
[350868710,1738167047038,-548.09,0.00016986,2]
[350868712,1738167047047,-500.0,0.00016986,2]
[350868714,1738167047057,-506.91863008,0.00016986,2]
[350868716,1738167047066,-503.90252617,0.00016986,2]
[350868718,1738167047076,-500.0,0.00016986,2]
[350868720,1738167047087,-500.0,0.00016986,2]
[350868722,1738167047096,-615.69,0.00016986,2]
[350868724,1738167047105,-500.0,0.00016986,2]
[350868726,1738167047114,-500.0,0.00016986,2]
[350868728,1738167047124,-500.0,0.00016986,2]
[350868730,1738167047134,-857.74,0.00016986,2]
[350868732,1738167047143,-500.0,0.00016986,2]
[350868734,1738167047153,-500.0,0.00016986,2]
[350868736,1738167047163,-500.0,0.00016986,2]
[350868738,1738167047172,-500.0,0.00016986,2]
[350868739,1738167047182,-500.0,0.00016986,2]
[350868740,1738167047193,-500.0,0.00016986,2]
[350868741,1738167047208,-740.58,0.00016986,2]
[350868742,1738167047227,-500.0,0.00016986,2]
[350868743,1738167047241,-500.0,0.00016986,2]
[350868744,1738167047251,-500.0,0.00016986,2]
[350868745,1738167047263,-527.64,0.00016986,2]
[350868746,1738167047273,-500.0,0.00016986,2]
[350868747,1738167047283,-500.0,0.00016986,2]
[350868748,1738167047293,-500.0,0.00016986,2]
[350868749,1738167047303,-500.0,0.00016986,2]
[350868750,1738167047312,-500.0,0.00016986,2]
[350868751,1738167047322,-500.0,0.00016986,2]
[350868752,1738167047331,-500.0,0.00016986,2]
[350868753,1738167047344,-500.0,0.00016986,2]
[350868754,1738167047354,-500.0,0.00016986,2]
[350868755,1738167047364,-500.0,0.00016986,2]
[350868757,1738167047374,-500.0,0.00016986,2]
[350868759,1738167047384,-500.0,0.00016986,2]
[350868761,1738167047393,-512.65,0.00016986,2]
[350868770,1738167047475,-154.025438,0.00016986,2]
[350868772,1738167047484,-154.025438,0.00016986,2]
[350868774,1738167047495,-500.0,0.00016986,2]
[350868776,1738167047505,-753.84,0.00016986,2]
[350868778,1738167047515,-500.0,0.00016986,2]
[350868780,1738167047525,-500.0,0.00016986,2]
[350868782,1738167047535,-500.0,0.00016986,2]
[350868784,1738167047545,-537.85,0.00016986,2]
[350868786,1738167047555,-500.0,0.00016986,2]
[350868788,1738167047564,-500.0,0.00016986,2]
[350868790,1738167047574,-959.94,0.00016986,2]
[350868792,1738167047584,-500.0,0.00016986,2]
[350868794,1738167047595,-500.0,0.00016986,2]
[350868796,1738167047605,-500.0,0.00016986,2]
[350868798,1738167047614,-500.0,0.00016986,2]
[350868800,1738167047624,-782.17,0.00016986,2]
[350868802,1738167047633,-500.0,0.00016986,2]
[350868804,1738167047643,-500.0,0.00016986,2]
[350868806,1738167047653,-418.17243834,0.00016986,2]
[350868808,1738167047663,-500.0,0.00016986,2]
[350868810,1738167047673,-1503.72,0.00016986,2]
[350868812,1738167047682,-500.0,0.00016986,2]
[350868814,1738167047692,-1065.64,0.00016986,2]
[350868816,1738167047702,-500.0,0.00016986,2]
[350868818,1738167047712,-568.53,0.00016986,2]
[350868820,1738167047722,-500.0,0.00016986,2]
[350868822,1738167047732,-8987.43,0.00016986,2]
[350868824,1738167047741,-1863.57,0.00016986,2]